fUST/lending_fUST_20240922
["ID","MTS","AMOUNT","RATE_DAILY","PERIOD"]
[338863146,1726950641765,-500.0,0.00014561,2]
[338863148,1726950641777,-500.0,0.00014561,2]
[338863150,1726950641787,-500.0,0.00014561,2]
[338863152,1726950641797,-500.0,0.00014561,2]
[338863154,1726950641808,-500.0,0.00014561,2]
[338863156,1726950641818,-2705.6,0.00014561,2]
[338863159,1726950641830,-500.0,0.00014834,2]
[338863161,1726950641840,-8197.47,0.00014834,2]
[338863163,1726950641851,-500.0,0.00014834,2]
[338863165,1726950641861,-500.0,0.00014834,2]
[338863167,1726950641871,-500.0,0.00014834,2]
[338863169,1726950641882,-747.06,0.00014834,2]
[338863171,1726950641892,-500.0,0.00014834,2]
[338863174,1726950641903,-500.0,0.00014834,2]
[338863176,1726950641913,-500.0,0.00014835,2]
[338863178,1726950641923,-500.0,0.00014835,2]
[338863180,1726950641936,-500.0,0.00014835,2]
[338863182,1726950641947,-500.0,0.00014835,2]
[338863185,1726950641958,-500.0,0.00014835,2]
[338863187,1726950641969,-500.0,0.00014835,2]
[338863189,1726950641980,-2705.6,0.00014835,2]
[338863191,1726950641992,-1244.36,0.000151,2]
[338863193,1726950642003,-500.0,0.00015108,2]
[338863195,1726950642013,-8197.47,0.00015108,2]
[338863198,1726950642024,-747.06,0.00015108,2]
[338863200,1726950642034,-500.0,0.00015109,2]
[338863202,1726950642045,-500.0,0.00015109,2]
[338863204,1726950642056,-500.0,0.00015109,2]
[338863206,1726950642066,-500.0,0.00015109,2]
[338863209,1726950642078,-541.8052585,0.00015109,2]
[338863211,1726950642089,-500.0,0.00015109,2]
[338863213,1726950642107,-2705.6,0.00015109,2]
[338863215,1726950642118,-500.0,0.00015382,2]
[338863217,1726950642128,-8197.47,0.00015382,2]
[338863220,1726950642138,-747.06,0.00015382,2]
[338863222,1726950642150,-500.0,0.00015383,2]
[338863224,1726950642160,-500.0,0.00015383,2]
[338863226,1726950642171,-500.0,0.00015383,2]
[338863228,1726950642181,-500.0,0.00015383,2]
[338863230,1726950642191,-500.0,0.00015383,2]
[338863232,1726950642202,-2705.6,0.00015383,2]
[338863235,1726950642217,-500.0,0.00015656,2]
[338863237,1726950642229,-8197.47,0.00015656,2]
[338863240,1726950642240,-747.06,0.00015656,2]
[338863242,1726950642251,-500.0,0.00015657,2]
[338863244,1726950642262,-500.0,0.00015657,2]
[338863246,1726950642273,-500.0,0.00015657,2]
[338863249,1726950642284,-500.0,0.00015657,2]
[338863251,1726950642295,-500.0,0.00015657,2]
[338863253,1726950642307,-2705.6,0.00015657,2]
[338863255,1726950642318,-500.0,0.00015663,2]
[338863258,1726950642329,-171.12430296,0.0001593,2]
[338863260,1726950642339,-8197.47,0.0001593,2]
[338863262,1726950642350,-747.06,0.0001593,2]
[338863264,1726950642360,-500.0,0.00015931,2]
[338863266,1726950642371,-500.0,0.00015931,2]
[338863268,1726950642382,-500.0,0.00015931,2]
[338863271,1726950642393,-500.0,0.00015931,2]
[338863273,1726950642405,-500.0,0.00015931,2]
[338863275,1726950642415,-2705.6,0.00015931,2]
[338863277,1726950642427,-420.0,0.00015942,2]
[338863279,1726950642437,-524.0,0.00016185,2]
[338863281,1726950642448,-150.0,0.00016185,2]
[338863284,1726950642458,-8197.47,0.00016204,2]
[338863286,1726950642469,-747.06,0.00016204,2]
[338863288,1726950642479,-500.0,0.00016205,2]
[338863290,1726950642489,-500.0,0.00016205,2]
[338863292,1726950642500,-500.0,0.00016205,2]
[338863294,1726950642510,-500.0,0.00016205,2]
[338863296,1726950642521,-547.01474531,0.00016205,2]
[338863298,1726950642532,-2705.6,0.00016205,2]
[338863301,1726950642542,-511.2,0.00016438,2]
[338863303,1726950642553,-33654.1935773,0.00016469,2]
[338863304,1726950642563,-37985.0330911,0.00016469,2]
[338863306,1726950642573,-8197.47,0.00016478,2]
[338863308,1726950642584,-747.06,0.00016478,2]
[338863310,1726950642594,-500.0,0.00016479,2]
[338863312,1726950642604,-360.61,0.00016479,2]
[338863313,1726950642615,-500.0,0.00016479,2]
[338863314,1726950642625,-500.0,0.00016479,2]
[338863315,1726950642635,-2705.6,0.00016479,2]
[338863316,1726950642645,-1215.4548922,0.000167,2]
[338863318,1726950642660,-254.69735299,0.00016707,2]
[338863319,1726950642670,-8197.47,0.00016752,2]
[338863320,1726950642681,-747.06,0.00016752,2]
[338863321,1726950642693,-500.0,0.00016753,2]
[338863322,1726950642703,-500.0,0.00016753,2]
[338863329,1726950642966,-500.0,0.00016753,2]
[338863332,1726950642980,-2705.6,0.00016753,2]
[338863334,1726950642991,-511.2,0.00016762,2]
[338863336,1726950643002,-2317.7779218,0.00016825,2]
[338863337,1726950643012,-8197.47,0.00017026,2]
[338863339,1726950643024,-747.06,0.00017026,2]
[338863341,1726950643034,-500.0,0.00017027,2]
[338863343,1726950643043,-500.0,0.00017027,2]
[338863345,1726950643055,-500.0,0.00017027,2]
[338863347,1726950643065,-2705.6,0.00017027,2]
[338863349,1726950643074,-1000.0,0.00017032,2]
[338863351,1726950643083,-511.2,0.00017086,2]
[338863352,1726950643097,-162.587116,0.00017099,2]
[338863354,1726950643107,-322.827984,0.00017099,2]
[338863355,1726950643117,-195.104539,0.00017099,2]
[338863357,1726950643128,-322.827984,0.00017099,2]
[338863359,1726950643140,-1660.6459602,0.000171,2]
[338863360,1726950643148,-153.0,0.00017111,2]
[338863362,1726950643157,-306.0,0.00017143,2]
[338863364,1726950643169,-364.24,0.00017176,2]
[338863366,1726950643178,-33654.1935773,0.00017291,2]
[338863368,1726950643188,-37985.0330911,0.00017291,2]
[338863370,1726950643199,-8197.47,0.000173,2]
[338863372,1726950643208,-747.06,0.000173,2]
[338863374,1726950643217,-500.0,0.00017301,2]
[338863376,1726950643226,-500.0,0.00017301,2]
[338863378,1726950643237,-500.0,0.00017301,2]
[338863380,1726950643247,-2705.6,0.00017301,2]
[338863382,1726950643258,-322.827984,0.00017313,2]
[338863384,1726950643267,-195.104539,0.00017313,2]
[338863386,1726950643276,-322.827984,0.00017313,2]
[338863388,1726950643285,-511.2,0.00017409,2]
[338863390,1726950643295,-620.41258417,0.00017441,2]
[338863392,1726950643304,-587.0,0.00017456,2]
[338863394,1726950643313,-322.827984,0.00017527,2]
[338863396,1726950643322,-195.104539,0.00017527,2]
[338863398,1726950643332,-322.827984,0.00017527,2]
[338863400,1726950643341,-8197.47,0.00017574,2]
[338863402,1726950643350,-747.06,0.00017574,2]
[338863404,1726950643359,-500.0,0.00017575,2]
[338863405,1726950643368,-500.0,0.00017575,2]
[338863408,1726950643378,-211.08,0.00017575,2]
[338863409,1726950643387,-2705.6,0.00017575,2]
[338863411,1726950643396,-1660.6459602,0.000176,2]
[338863414,1726950643406,-2000.66059323,0.000176,2]
[338863416,1726950643426,-229.0,0.0001762,2]
[338863418,1726950643436,-6844.4157779,0.00017666,2]
[338863420,1726950643445,-150.0,0.00017716,2]
[338863422,1726950643457,-511.2,0.00017733,2]
[338863424,1726950643467,-322.827984,0.00017741,2]
[338863425,1726950643477,-195.104539,0.00017741,2]
[338863426,1726950643488,-322.827984,0.00017741,2]
[338863427,1726950643497,-8197.47,0.00017848,2]
[338863428,1726950643507,-747.06,0.00017848,2]
[338863429,1726950643517,-500.0,0.00017849,2]
[338863430,1726950643528,-500.0,0.00017849,2]
[338863431,1726950643538,-2055.33567454,0.00017849,2]
[338863432,1726950643561,-650.26432546,0.00017849,2]
[338863433,1726950643572,-500.0,0.00017865,2]
[338863434,1726950643583,-500.0,0.00017865,2]
[338863435,1726950643593,-500.0,0.00017865,2]
[338863436,1726950643604,-500.0,0.00017865,2]
[338863437,1726950643615,-500.0,0.00017865,2]
[338863438,1726950643626,-500.0,0.00017865,2]
[338863439,1726950643637,-500.0,0.00017865,2]
[338863440,1726950643649,-500.0,0.00017865,2]
[338863441,1726950643659,-500.0,0.00017865,2]
[338863442,1726950643669,-500.0,0.00017865,2]
[338863443,1726950643679,-500.0,0.00017865,2]
[338863444,1726950643690,-500.0,0.00017865,2]
[338863445,1726950643699,-500.0,0.00017865,2]
[338863446,1726950643710,-500.0,0.00017865,2]
[338863447,1726950643719,-500.0,0.00017865,2]
[338863448,1726950643731,-500.0,0.00017865,2]
[338863449,1726950643741,-500.0,0.00017865,2]
[338863450,1726950643752,-500.0,0.00017865,2]
[338863451,1726950643762,-500.0,0.00017865,2]
[338863452,1726950643772,-500.0,0.00017865,2]
[338863453,1726950643782,-435.85000266,0.00017865,2]
[338863454,1726950643791,-500.0,0.00017865,2]
[338863455,1726950643800,-500.0,0.00017865,2]
[338863456,1726950643810,-500.0,0.00017865,2]
[338863457,1726950643821,-500.0,0.00017865,2]
[338863458,1726950643830,-9717.7218872,0.00017866,2]
[338863464,1726950646235,-3.0,0.00014834,2]
[338863466,1726950646247,-497.0,0.00014834,2]
[338863467,1726950646257,-1216.0,0.00016132,2]
[338863469,1726950646266,-260.139385,0.00017099,2]
[338863471,1726950646275,-260.139385,0.00017313,2]
[338863473,1726950646285,-260.139385,0.00017527,2]
[338863475,1726950646295,-6844.415778,0.0001755,2]
[338863477,1726950646304,-150.19125691,0.00017677,2]
[338863479,1726950646313,-260.139385,0.00017741,2]
[338863481,1726950646323,-524.88270875,0.00017866,2]
[338863499,1726951440321,-170.0,0.00014027,2]
[338863500,1726951440344,-430.0,0.00014093,2]
[338863501,1726951440369,-5010.2668868,0.00014093,2]
[338863502,1726951440390,-300.0,0.00014833,2]
[338863503,1726951440413,-501.01295362,0.00014834,2]
[338863504,1726951440435,-500.0,0.00014834,2]
[338863505,1726951440456,-150.0,0.00014834,2]
[338863506,1726951440479,-500.0,0.00014834,2]
[338863507,1726951440503,-500.0,0.00014834,2]
[338863508,1726951440526,-500.0,0.00014834,2]
[338863509,1726951440547,-500.0,0.00014834,2]
[338863510,1726951440567,-500.0,0.00014834,2]
[338863511,1726951440589,-500.0,0.00014834,2]
[338863512,1726951440610,-500.0,0.00014834,2]
[338863513,1726951440633,-500.0,0.00014834,2]
[338863514,1726951440654,-225.07991047,0.00014834,2]
[338863532,1726951832400,-194.24,0.00014833,2]
[338863534,1726951832414,-292.30876236,0.00014833,2]
[338863536,1726951832427,-207.69123764,0.00014833,2]
[338863537,1726951832438,-300.0,0.00014833,2]
[338863538,1726951832450,-300.0,0.00014833,2]
[338863539,1726951832459,-500.0,0.00014834,2]
[338863540,1726951832468,-450.93129213,0.00014834,2]
[338863541,1726951832477,-500.0,0.00014834,2]
[338863542,1726951832486,-517.44349392,0.00014834,2]
[338863543,1726951832497,-93.74634853,0.00014834,2]
[338863544,1726951832506,-380.08780174,0.00014834,2]
[338863546,1726951832517,-119.91219826,0.00014834,2]
[338863548,1726951832527,-389.31955495,0.00014834,2]
[338863550,1726951832536,-113.12005827,0.00014834,2]
[338863556,1726951832580,-386.87994173,0.00014834,2]
[338863558,1726951832589,-500.0,0.00014834,2]
[338863566,1726951832808,-494.58619723,0.00014834,2]
[338863602,1726951840293,-5.41380277,0.00014834,2]
[338863603,1726951840303,-500.0,0.00014834,2]
[338863604,1726951840313,-570.2,0.00014834,2]
[338863605,1726951840325,-500.0,0.00014834,2]
[338863606,1726951840334,-500.0,0.00014834,2]
[338863607,1726951840344,-500.0,0.00014834,2]
[338863608,1726951840353,-268.5491018,0.00014834,2]
[338863609,1726951840362,-500.0,0.00014834,2]
[338863610,1726951840372,-500.0,0.00014834,2]
[338863611,1726951840381,-500.0,0.00014834,2]
[338863612,1726951840390,-500.0,0.00014834,2]
[338863613,1726951840400,-495.43466752,0.00014834,2]
[338863614,1726951840410,-500.0,0.00014834,2]
[338863615,1726951840421,-500.0,0.00014834,2]
[338863616,1726951840431,-162.9789201,0.00015006,2]
[338863617,1726951840440,-1119.93,0.000151,2]
[338863618,1726951840450,-500.0,0.00015104,2]
[338863619,1726951840459,-500.0,0.00015104,2]
[338863620,1726951840473,-8197.47,0.00015104,2]
[338863621,1726951840482,-809.31,0.00015104,2]
[338863622,1726951840492,-500.0,0.00015104,2]
[338863623,1726951840501,-500.0,0.00015104,2]
[338863624,1726951840511,-500.0,0.00015104,2]
[338863625,1726951840520,-500.0,0.00015105,2]
[338863626,1726951840530,-500.0,0.00015105,2]
[338863627,1726951840540,-500.0,0.00015105,2]
[338863628,1726951840550,-500.0,0.00015105,2]
[338863629,1726951840559,-500.0,0.00015105,2]
[338863630,1726951840569,-455.00433122,0.00015105,2]
[338863631,1726951840580,-500.0,0.00015105,2]
[338863632,1726951840591,-500.0,0.00015105,2]
[338863633,1726951840600,-500.0,0.00015105,2]
[338863634,1726951840610,-500.0,0.00015105,2]
[338863635,1726951840619,-500.0,0.00015105,2]
[338863636,1726951840629,-2907.95,0.00015105,2]
[338863637,1726951840639,-500.0,0.00015105,2]
[338863638,1726951840649,-262.81972948,0.00015105,2]
[338863639,1726951840659,-500.0,0.00015106,2]
[338863640,1726951840670,-500.0,0.00015106,2]
[338863641,1726951840680,-500.0,0.00015106,2]
[338863642,1726951840689,-500.0,0.00015106,2]
[338863643,1726951840701,-591.4,0.00015106,2]
[338863644,1726951840710,-500.0,0.00015106,2]
[338863645,1726951840719,-274.92008953,0.00015106,2]
[338863646,1726951840729,-529.19,0.00015106,2]
[338863647,1726951840739,-500.0,0.00015106,2]
[338863648,1726951840750,-500.0,0.00015106,2]
[338863649,1726951840760,-500.0,0.00015106,2]
[338863650,1726951840770,-500.0,0.00015106,2]
[338863651,1726951840780,-500.0,0.00015106,2]
[338863652,1726951840791,-500.0,0.00015106,2]
[338863653,1726951840800,-500.0,0.00015106,2]
[338863654,1726951840810,-500.0,0.00015106,2]
[338863655,1726951840821,-999.000999,0.00015107,2]
[338863656,1726951840831,-500.0,0.00015107,2]
[338863657,1726951840841,-610.64104271,0.00015108,2]
[338863658,1726951840850,-500.0,0.00015108,2]
[338863659,1726951840860,-500.0,0.00015108,2]
[338863660,1726951840871,-500.0,0.00015108,2]
[338863661,1726951840880,-500.0,0.00015108,2]
[338863662,1726951840890,-500.0,0.00015108,2]
[338863663,1726951840900,-500.0,0.00015108,2]
[338863664,1726951840909,-570.2,0.00015108,2]
[338863665,1726951840924,-500.0,0.00015108,2]
[338863666,1726951840934,-500.0,0.00015108,2]
[338863667,1726951840945,-500.0,0.00015108,2]
[338863668,1726951840955,-500.0,0.00015108,2]
[338863669,1726951840965,-500.0,0.00015108,2]
[338863670,1726951840975,-500.0,0.00015108,2]
[338863671,1726951840985,-500.0,0.00015108,2]
[338863672,1726951840995,-500.0,0.00015378,2]
[338863673,1726951841006,-500.0,0.00015378,2]
[338863674,1726951841016,-8197.47,0.00015378,2]
[338863675,1726951841025,-809.31,0.00015378,2]
[338863676,1726951841035,-500.0,0.00015378,2]
[338863677,1726951841046,-500.0,0.00015378,2]
[338863678,1726951841056,-500.0,0.00015379,2]
[338863679,1726951841065,-500.0,0.00015379,2]
[338863680,1726951841075,-500.0,0.00015379,2]
[338863681,1726951841085,-500.0,0.00015379,2]
[338863682,1726951841320,-500.0,0.00015379,2]
[338863683,1726951841331,-500.0,0.00015379,2]
[338863684,1726951841342,-2907.95,0.00015379,2]
[338863685,1726951841353,-500.0,0.00015379,2]
[338863686,1726951841362,-158.17754438,0.0001538,2]
[338863687,1726951841371,-500.0,0.0001538,2]
[338863688,1726951841380,-519.6524215,0.0001538,2]
[338863689,1726951841389,-500.0,0.0001538,2]
[338863690,1726951841399,-591.4,0.0001538,2]
[338863691,1726951841408,-413.0786524,0.0001538,2]
[338863692,1726951841420,-529.19,0.0001538,2]
[338863693,1726951841430,-500.0,0.0001538,2]
[338863694,1726951841439,-500.0,0.0001538,2]
[338863695,1726951841448,-500.0,0.0001538,2]
[338863696,1726951841457,-500.0,0.0001538,2]
[338863697,1726951841466,-500.0,0.0001538,2]
[338863698,1726951841475,-315.9772855,0.0001538,2]
[338863699,1726951841484,-500.0,0.0001538,2]
[338863700,1726951841494,-500.0,0.0001538,2]
[338863701,1726951841502,-500.0,0.00015381,2]
[338863702,1726951841512,-500.0,0.00015382,2]
[338863703,1726951841521,-500.0,0.00015382,2]
[338863704,1726951841530,-500.0,0.00015382,2]
[338863705,1726951841539,-500.0,0.00015382,2]
[338863706,1726951841549,-500.0,0.00015382,2]
[338863707,1726951841557,-500.0,0.00015382,2]
[338863708,1726951841566,-570.2,0.00015382,2]
[338863709,1726951841576,-500.0,0.00015382,2]
[338863710,1726951841588,-500.0,0.00015382,2]
[338863711,1726951841597,-500.0,0.00015382,2]
[338863712,1726951841606,-500.0,0.00015382,2]
[338863713,1726951841616,-500.0,0.00015382,2]
[338863714,1726951841627,-500.0,0.00015382,2]
[338863715,1726951841636,-500.0,0.00015382,2]
[338863716,1726951841646,-33142.0633475,0.00015636,2]
[338863717,1726951841657,-37985.0330911,0.00015636,2]
[338863718,1726951841671,-500.0,0.00015652,2]
[338863719,1726951841689,-500.0,0.00015652,2]
[338863720,1726951841698,-8197.47,0.00015652,2]
[338863721,1726951841707,-809.31,0.00015652,2]
[338863722,1726951841716,-500.0,0.00015652,2]
[338863723,1726951841725,-500.0,0.00015652,2]
[338863724,1726951841734,-500.0,0.00015653,2]
[338863725,1726951841743,-500.0,0.00015653,2]
[338863726,1726951841752,-500.0,0.00015653,2]
[338863727,1726951841772,-500.0,0.00015653,2]
[338863728,1726951841784,-575.07,0.00015653,2]
[338863729,1726951841794,-500.0,0.00015653,2]
[338863730,1726951841804,-2907.95,0.00015653,2]
[338863731,1726951841813,-500.0,0.00015653,2]
[338863732,1726951841823,-500.0,0.00015654,2]
[338863733,1726951841832,-500.0,0.00015654,2]
[338863734,1726951841843,-591.4,0.00015654,2]
[338863735,1726951841853,-529.19,0.00015654,2]
[338863736,1726951841863,-500.0,0.00015654,2]
[338863737,1726951841873,-500.0,0.00015654,2]
[338863738,1726951841884,-500.0,0.00015654,2]
[338863739,1726951841895,-500.0,0.00015654,2]
[338863740,1726951841906,-500.0,0.00015654,2]
[338863741,1726951841916,-500.0,0.00015654,2]
[338863742,1726951841927,-500.0,0.00015654,2]
[338863743,1726951841938,-500.0,0.00015655,2]
[338863744,1726951841950,-500.0,0.00015656,2]
[338863745,1726951841961,-217.3981368,0.00015656,2]
[338863746,1726951841971,-500.0,0.00015656,2]
[338863747,1726951841980,-500.0,0.00015656,2]
[338863748,1726951841990,-500.0,0.00015656,2]
[338863749,1726951841999,-500.0,0.00015656,2]
[338863750,1726951842009,-570.2,0.00015656,2]
[338863751,1726951842018,-500.0,0.00015656,2]
[338863752,1726951842028,-500.0,0.00015656,2]
[338863753,1726951842038,-500.0,0.00015656,2]
[338863754,1726951842048,-500.0,0.00015656,2]
[338863755,1726951842058,-500.0,0.00015656,2]
[338863756,1726951842069,-500.0,0.00015656,2]
[338863757,1726951842078,-500.0,0.00015656,2]
[338863758,1726951842088,-33142.0633475,0.00015917,2]
[338863759,1726951842098,-37985.0330911,0.00015917,2]
[338863760,1726951842108,-500.0,0.00015926,2]
[338863761,1726951842117,-500.0,0.00015926,2]
[338863762,1726951842128,-8197.47,0.00015926,2]
[338863763,1726951842138,-809.31,0.00015926,2]
[338863764,1726951842148,-500.0,0.00015926,2]
[338863765,1726951842157,-500.0,0.00015926,2]
[338863766,1726951842166,-500.0,0.00015927,2]
[338863767,1726951842177,-500.0,0.00015927,2]
[338863768,1726951842187,-500.0,0.00015927,2]
[338863769,1726951842197,-500.0,0.00015927,2]
[338863770,1726951842209,-500.0,0.00015927,2]
[338863771,1726951842219,-2907.95,0.00015927,2]
[338863772,1726951842228,-500.0,0.00015928,2]
[338863773,1726951842239,-500.0,0.00015928,2]
[338863774,1726951842248,-591.4,0.00015928,2]
[338863775,1726951842258,-529.19,0.00015928,2]
[338863776,1726951842267,-500.0,0.00015928,2]
[338863777,1726951842277,-500.0,0.00015928,2]
[338863778,1726951842286,-500.0,0.00015928,2]
[338863779,1726951842296,-500.0,0.00015928,2]
[338863780,1726951842305,-500.0,0.00015928,2]
[338863781,1726951842314,-500.0,0.00015928,2]
[338863782,1726951842323,-500.0,0.00015928,2]
[338863783,1726951842333,-500.0,0.00015929,2]
[338863784,1726951842343,-500.0,0.0001593,2]
[338863785,1726951842352,-500.0,0.0001593,2]
[338863786,1726951842361,-500.0,0.0001593,2]
[338863787,1726951842370,-500.0,0.0001593,2]
[338863788,1726951842380,-500.0,0.0001593,2]
[338863789,1726951842389,-570.2,0.0001593,2]
[338863790,1726951842399,-500.0,0.0001593,2]
[338863791,1726951842408,-500.0,0.0001593,2]
[338863792,1726951842417,-500.0,0.0001593,2]
[338863793,1726951842427,-500.0,0.0001593,2]
[338863794,1726951842438,-500.0,0.0001593,2]
[338863795,1726951842446,-500.0,0.0001593,2]
[338863796,1726951842456,-300.0,0.000161,6]
[338863797,1726951842466,-33142.0633475,0.00016184,2]
[338863798,1726951842475,-37985.0330911,0.00016184,2]
[338863799,1726951842484,-500.0,0.000162,2]
[338863800,1726951842493,-8197.47,0.000162,2]
[338863801,1726951842503,-809.31,0.000162,2]
[338863802,1726951842512,-500.0,0.000162,2]
[338863803,1726951842521,-500.0,0.000162,2]
[338863804,1726951842530,-500.0,0.00016201,2]
[338863805,1726951842540,-500.0,0.00016201,2]
[338863806,1726951842550,-500.0,0.00016201,2]
[338863807,1726951842559,-602.48346368,0.00016201,2]
[338863808,1726951842568,-360.61,0.00016201,2]
[338863809,1726951842578,-2907.95,0.00016201,2]
[338863810,1726951842588,-500.0,0.00016202,2]
[338863811,1726951842597,-500.0,0.00016202,2]
[338863812,1726951842607,-591.4,0.00016202,2]
[338863813,1726951842617,-529.19,0.00016202,2]
[338863814,1726951842627,-500.0,0.00016202,2]
[338863815,1726951842636,-500.0,0.00016202,2]
[338863816,1726951842647,-500.0,0.00016202,2]
[338863817,1726951842658,-500.0,0.00016202,2]
[338863818,1726951842668,-500.0,0.00016202,2]
[338863819,1726951842677,-426.46244305,0.00016202,2]
[338863820,1726951842686,-500.0,0.00016202,2]
[338863821,1726951842696,-500.0,0.00016203,2]
[338863822,1726951842705,-454.51217959,0.00016204,2]
[338863823,1726951842715,-483.05090178,0.00016204,2]
[338863824,1726951842724,-500.0,0.00016204,2]
[338863825,1726951842733,-500.0,0.00016204,2]
[338863826,1726951842743,-567.28729809,0.00016204,2]
[338863827,1726951842752,-570.2,0.00016204,2]
[338863828,1726951842762,-500.0,0.00016204,2]
[338863829,1726951842772,-500.0,0.00016204,2]
[338863830,1726951842781,-500.0,0.00016204,2]
[338863831,1726951842791,-500.0,0.00016204,2]
[338863832,1726951842800,-500.0,0.00016204,2]
[338863833,1726951842811,-500.0,0.00016204,2]
[338863834,1726951842820,-420.0,0.00016237,2]
[338863835,1726951842831,-998.90120867,0.00016307,2]
[338863836,1726951842841,-681.6,0.00016438,2]
[338863837,1726951842850,-200.0,0.00016438,2]
[338863838,1726951842860,-200.0,0.00016438,2]
[338863839,1726951842870,-200.0,0.00016438,2]
[338863840,1726951842879,-200.0,0.00016438,2]
[338863841,1726951842888,-200.0,0.00016438,2]
[338863842,1726951842899,-524.0,0.00016463,2]
[338863843,1726951842909,-150.0,0.00016463,2]
[338863844,1726951842920,-1216.0,0.00016463,2]
[338863845,1726951842929,-150.0,0.00016463,2]
[338863846,1726951842939,-150.154,0.00016463,2]
[338863847,1726951842949,-500.0,0.00016464,2]
[338863848,1726951842959,-500.0,0.00016464,2]
[338863851,1726951842970,-215.09444474,0.00016464,2]
[338863853,1726951842979,-46456.34456468,0.00016465,3]
[338863855,1726951842988,-62544.0425455,0.00016465,3]
[338863858,1726951843008,-7440.6944135,0.00016465,3]
[338863997,1726953030151,250.0,0.00014086,2]
[338864029,1726953032478,-2822.8274154,0.00014103,2]
[338864031,1726953032488,-433.80217186,0.00015004,2]
[338864033,1726953032498,-1007.93,0.000151,2]
[338864035,1726953032508,-300.0,0.00015102,2]
[338864037,1726953032518,-500.0,0.00015103,2]
[338864039,1726953032531,-367.6345964,0.00015103,2]
[338864041,1726953032545,-132.3654036,0.00015103,2]
[338864043,1726953032554,-489.74844223,0.00015103,2]
[338864196,1726953040531,-10.25155777,0.00015103,2]
[338864197,1726953040542,-500.0,0.00015103,2]
[338864198,1726953040553,-500.0,0.00015103,2]
[338864199,1726953040562,-500.0,0.00015103,2]
[338864200,1726953040572,-511.65,0.00015103,2]
[338864201,1726953040582,-500.0,0.00015103,2]
[338864202,1726953040591,-500.0,0.00015103,2]
[338864203,1726953040601,-500.0,0.00015103,2]
[338864204,1726953040611,-9222.15,0.00015103,2]
[338864205,1726953040620,-3279.21,0.00015103,2]
[338864206,1726953040629,-832.66,0.00015103,2]
[338864207,1726953040639,-500.0,0.00015104,2]
[338864209,1726953040648,-500.0,0.00015104,2]
[338864210,1726953040657,-500.0,0.00015104,2]
[338864211,1726953040667,-500.0,0.00015104,2]
[338864212,1726953040679,-532.4,0.00015104,2]
[338864213,1726953040688,-500.0,0.00015104,2]
[338864214,1726953040697,-500.0,0.00015104,2]
[338864215,1726953040706,-500.0,0.00015104,2]
[338864216,1726953040716,-500.0,0.00015104,2]
[338864217,1726953040727,-500.0,0.00015104,2]
[338864218,1726953040741,-500.0,0.00015104,2]
[338864219,1726953040751,-500.0,0.00015104,2]
[338864220,1726953040761,-500.0,0.00015104,2]
[338864221,1726953040771,-500.0,0.00015105,2]
[338864222,1726953040780,-500.0,0.00015105,2]